fUST/lending_fUST_20250725
["ID","MTS","AMOUNT","RATE_DAILY","PERIOD"]
[374682136,1753410657899,-460.0,0.00019419,2]
[374682137,1753410657909,-151.0,0.00019419,2]
[374682138,1753410657919,-769.35,0.00019419,2]
[374682139,1753410657928,-548.05,0.00019419,2]
[374682140,1753410657938,-3618.34,0.00019419,2]
[374682141,1753410657947,-669.02,0.00019419,2]
[374682142,1753410657957,-618.66,0.00019419,2]
[374682143,1753410657967,-395.662983,0.00019419,2]
[374682144,1753410657977,-2183.0,0.00019419,2]
[374682145,1753410657987,-395.662983,0.00019419,2]
[374682146,1753410657996,-221.595149,0.00019419,2]
[374682147,1753410658006,-798.0,0.00019419,2]
[374682149,1753410658016,-221.595149,0.00019419,2]
[374682151,1753410658026,-1662.31,0.00019419,2]
[374682153,1753410658036,-2580.53,0.00019419,2]
[374682155,1753410658046,-723.52,0.00019419,2]
[374682157,1753410658057,-460.0,0.00019419,2]
[374682159,1753410658067,-2911.49,0.00019419,2]
[374682162,1753410658078,-1899.99,0.00019419,2]
[374682164,1753410658088,-823.25,0.00019419,2]
[374682166,1753410658098,-513.52971729,0.00019419,2]
[374682168,1753410658110,-460.0,0.00019419,2]
[374682171,1753410658129,-1184.05,0.00019419,2]
[374682173,1753410658139,-460.0,0.00019419,2]
[374682175,1753410658148,-845.56,0.00019419,2]
[374682177,1753410658158,-1186.37,0.00019419,2]
[374682179,1753410658168,-466.68,0.00019419,2]
[374682181,1753410658178,-1166.67,0.00019419,2]
[374682183,1753410658188,-1837.22,0.00019419,2]
[374682185,1753410658197,-1960.72,0.00019419,2]
[374682187,1753410658207,-684.41,0.00019419,2]
[374682189,1753410658218,-2087.95,0.00019419,2]
[374682191,1753410658228,-805.27,0.00019419,2]
[374682193,1753410658238,-1307.26,0.00019419,2]
[374682195,1753410658248,-857.62,0.00019419,2]
[374682197,1753410658258,-460.0,0.00019419,2]
[374682199,1753410658267,-460.0,0.00019419,2]
[374682201,1753410658276,-189.15438813,0.00019419,2]
[374682203,1753410658286,-2118.52,0.00019419,2]
[374682205,1753410658295,-477.31,0.00019419,2]
[374682207,1753410658305,-315.154865,0.00019419,2]
[374682209,1753410658315,-460.0,0.00019419,2]
[374682211,1753410658326,-460.0,0.00019419,2]
[374682213,1753410658336,-315.154865,0.00019419,2]
[374682215,1753410658346,-994.19,0.00019419,2]
[374682217,1753410658356,-460.0,0.00019419,2]
[374682219,1753410658365,-689.09,0.00019419,2]
[374682221,1753410658374,-851.66,0.00019419,2]
[374682223,1753410658384,-5280.61,0.00019419,2]
[374682225,1753410658393,-818.01,0.00019419,2]
[374682227,1753410658403,-1060.82,0.00019419,2]
[374682229,1753410658413,-2954.27,0.00019419,2]
[374682231,1753410658423,-668.67,0.00019419,2]
[374682233,1753410658433,-460.0,0.0001942,2]
[374682235,1753410658442,-151.0,0.0001942,2]
[374682237,1753410658452,-515.15,0.0001942,2]
[374682239,1753410658462,-460.0,0.0001942,2]
[374682241,1753410658471,-151.0,0.0001942,2]
[374682243,1753410658481,-555.36,0.0001942,2]
[374682246,1753410658493,-460.0,0.0001942,2]
[374682248,1753410658504,-1327.67,0.0001942,2]
[374682250,1753410658514,-460.0,0.0001942,2]
[374682252,1753410658523,-523.23,0.0001942,2]
[374682253,1753410658533,-491.61,0.0001942,2]
[374682255,1753410658543,-460.0,0.0001942,2]
[374682257,1753410658553,-460.0,0.0001942,2]
[374682259,1753410658563,-460.0,0.0001942,2]
[374682260,1753410658574,-460.0,0.0001942,2]
[374682261,1753410658585,-636.24,0.0001942,2]
[374682263,1753410658594,-460.0,0.0001942,2]
[374682265,1753410658604,-460.0,0.00019421,2]
[374682267,1753410658614,-623.4883747,0.00019421,2]
[374682269,1753410658623,-460.0,0.00019421,2]
[374682271,1753410658633,-190.997701,0.00019424,2]
[374682273,1753410658642,-151.0,0.00019424,2]
[374682275,1753410658652,-529.65,0.00019424,2]
[374682277,1753410658661,-261.191421,0.00019424,2]
[374682278,1753410658671,-688.45,0.00019424,2]
[374682279,1753410658681,-460.0,0.00019424,2]
[374682280,1753410658691,-212.02113163,0.00019452,3]
[374682281,1753410658701,-1003.65022164,0.00019468,2]
[374682282,1753410658711,-479.09927146,0.00019468,2]
[374682283,1753410658721,-506.55231757,0.00019468,2]
[374682284,1753410658731,-1500.0,0.00019468,2]
[374682285,1753410658740,-194.0,0.00019472,2]
[374682286,1753410658750,-194.0,0.00019482,2]
[374682287,1753410658760,-168.0,0.00019506,2]
[374682288,1753410658769,-168.0,0.00019506,2]
[374682289,1753410658779,-203.945117,0.00019521,2]
[374682290,1753410658789,-203.945117,0.00019521,2]
[374682291,1753410658798,-323.923002,0.00019521,2]
[374682292,1753410658808,-323.923002,0.00019521,2]
[374682293,1753410658817,-194.0,0.00019569,2]
[374682294,1753410658827,-1115.75524555,0.00019572,2]
[374682295,1753410658836,-168.0,0.00019575,2]
[374682296,1753410658846,-360.0,0.00019589,2]
[374682297,1753410658856,-6775.75941783,0.0001959,2]
[374682298,1753410658866,-559.7,0.00019594,2]
[374682299,1753410658876,-494.51,0.00019594,2]
[374682300,1753410658886,-469.52,0.00019594,2]
[374682301,1753410658895,-515.84,0.00019594,2]
[374682302,1753410658905,-554.32,0.00019594,2]
[374682303,1753410658914,-2480.89,0.00019594,2]
[374682304,1753410658924,-168.0,0.00019595,2]
[374682305,1753410658933,-180.07,0.00019623,2]
[374682306,1753410658943,-460.0,0.00019693,2]
[374682307,1753410658952,-199.5136134,0.00019693,2]
[374682308,1753410658961,-531.83,0.00019693,2]
[374682309,1753410658971,-153.501061,0.00019693,2]
[374682310,1753410658981,-460.0,0.00019693,2]
[374682311,1753410658991,-460.0,0.00019693,2]
[374682312,1753410659000,-460.0,0.00019693,2]
[374682313,1753410659010,-708.61,0.00019693,2]
[374682314,1753410659020,-460.0,0.00019693,2]
[374682315,1753410659030,-707.69,0.00019693,2]
[374682316,1753410659039,-164.22329062,0.00019693,2]
[374682317,1753410659049,-460.0,0.00019693,2]
[374682318,1753410659060,-460.0,0.00019693,2]
[374682319,1753410659070,-460.0,0.00019693,2]
[374682321,1753410659081,-495.41,0.00019693,2]
[374682323,1753410659090,-460.0,0.00019693,2]
[374682325,1753410659100,-460.0,0.00019693,2]
[374682327,1753410659110,-460.0,0.00019693,2]
[374682329,1753410659119,-460.0,0.00019693,2]
[374682331,1753410659129,-1047.05,0.00019693,2]
[374682333,1753410659139,-202.786729,0.00019693,2]
[374682335,1753410659149,-202.786729,0.00019693,2]
[374682337,1753410659158,-584.03,0.00019693,2]
[374682338,1753410659168,-460.0,0.00019693,2]
[374682339,1753410659178,-216.628189,0.00019693,2]
[374682340,1753410659188,-216.628189,0.00019693,2]
[374682341,1753410659198,-167.690374,0.00019693,2]
[374682342,1753410659209,-460.0,0.00019693,2]
[374682343,1753410659219,-167.690374,0.00019693,2]
[374682344,1753410659229,-460.0,0.00019693,2]
[374682345,1753410659239,-151.70559,0.00019693,2]
[374682346,1753410659249,-773.56,0.00019693,2]
[374682347,1753410659259,-460.0,0.00019693,2]
[374682348,1753410659269,-1012.15,0.00019693,2]
[374682349,1753410659279,-519.48,0.00019693,2]
[374682350,1753410659289,-797.69,0.00019693,2]
[374682351,1753410659299,-6186.6,0.00019693,2]
[374682352,1753410659309,-1104.74,0.00019693,2]
[374682353,1753410659320,-2434.21,0.00019693,2]
[374682354,1753410659330,-489.76,0.00019693,2]
[374682355,1753410659340,-824.96,0.00019693,2]
[374682356,1753410659350,-3551.94,0.00019693,2]
[374682357,1753410659360,-460.0,0.00019693,2]
[374682358,1753410659371,-196.57660155,0.00019693,2]
[374682359,1753410659381,-537.45,0.00019693,2]
[374682360,1753410659392,-597.97,0.00019693,2]
[374682361,1753410659402,-460.0,0.00019693,2]
[374682362,1753410659412,-769.35,0.00019693,2]
[374682363,1753410659422,-548.05,0.00019693,2]
[374682364,1753410659432,-3618.34,0.00019693,2]
[374682365,1753410659442,-669.02,0.00019693,2]
[374682366,1753410659452,-618.66,0.00019693,2]
[374682367,1753410659461,-2183.0,0.00019693,2]
[374682368,1753410659472,-798.0,0.00019693,2]
[374682369,1753410659482,-222.61079,0.00019693,2]
[374682370,1753410659495,-222.61079,0.00019693,2]
[374682371,1753410659505,-1662.31,0.00019693,2]
[374682372,1753410659514,-2580.53,0.00019693,2]
[374682373,1753410659524,-723.52,0.00019693,2]
[374682374,1753410659535,-460.0,0.00019693,2]
[374682375,1753410659545,-2911.49,0.00019693,2]
[374682377,1753410659554,-1899.99,0.00019693,2]
[374682379,1753410659567,-823.25,0.00019693,2]
[374682380,1753410659578,-460.0,0.00019693,2]
[374682382,1753410659589,-1184.05,0.00019693,2]
[374682385,1753410659600,-460.0,0.00019693,2]
[374682387,1753410659610,-845.56,0.00019693,2]
[374682389,1753410659620,-1186.37,0.00019693,2]
[374682391,1753410659630,-1166.67,0.00019693,2]
[374682393,1753410659639,-466.68,0.00019693,2]
[374682395,1753410659649,-1837.22,0.00019693,2]
[374682397,1753410659662,-1960.72,0.00019693,2]
[374682399,1753410659671,-157.691582,0.00019693,2]
[374682401,1753410659682,-684.41,0.00019693,2]
[374682403,1753410659694,-2087.95,0.00019693,2]
[374682405,1753410659704,-805.27,0.00019693,2]
[374682407,1753410659714,-1307.26,0.00019693,2]
[374682409,1753410659724,-152.36549,0.00019693,2]
[374682411,1753410659734,-857.62,0.00019693,2]
[374682413,1753410659743,-460.0,0.00019693,2]
[374682414,1753410659753,-460.0,0.00019693,2]
[374682415,1753410659763,-2118.52,0.00019693,2]
[374682417,1753410659772,-477.31,0.00019693,2]
[374682419,1753410659782,-460.0,0.00019693,2]
[374682421,1753410659791,-460.0,0.00019693,2]
[374682423,1753410659801,-994.19,0.00019693,2]
[374682425,1753410659812,-460.0,0.00019693,2]
[374682426,1753410659821,-689.09,0.00019693,2]
[374682428,1753410659831,-851.66,0.00019693,2]
[374682430,1753410659841,-5280.61,0.00019693,2]
[374682432,1753410659851,-818.01,0.00019693,2]
[374682434,1753410659861,-1060.82,0.00019693,2]
[374682435,1753410659871,-2954.27,0.00019693,2]
[374682436,1753410659882,-668.67,0.00019693,2]
[374682437,1753410659891,-460.0,0.00019694,2]
[374682438,1753410659901,-460.0,0.00019694,2]
[374682439,1753410659911,-460.0,0.00019694,2]
[374682440,1753410659921,-515.15,0.00019694,2]
[374682441,1753410659931,-460.0,0.00019694,2]
[374682442,1753410659941,-555.36,0.00019694,2]
[374682443,1753410659951,-460.0,0.00019694,2]
[374682445,1753410659961,-1327.67,0.00019694,2]
[374682446,1753410659970,-460.0,0.00019694,2]
[374682447,1753410659979,-523.23,0.00019694,2]
[374682448,1753410659989,-491.61,0.00019694,2]
[374682449,1753410660000,-460.0,0.00019694,2]
[374682450,1753410660011,-460.0,0.00019694,2]
[374682451,1753410660152,-460.0,0.00019694,2]
[374682452,1753410660164,-460.0,0.00019694,2]
[374682453,1753410660174,-636.24,0.00019694,2]
[374682454,1753410660184,-460.0,0.00019694,2]
[374682455,1753410660193,-295.803075,0.00019695,2]
[374682456,1753410660203,-151.0,0.00019695,2]
[374682457,1753410660212,-152.082524,0.00019695,2]
[374682458,1753410660221,-460.0,0.00019695,2]
[374682459,1753410660230,-151.0,0.00019695,2]
[374682460,1753410660240,-460.0,0.00019695,2]
[374682461,1753410660250,-151.0,0.00019695,2]
[374682462,1753410660260,-151.0,0.00019695,2]
[374682463,1753410660269,-221.595149,0.00019695,2]
[374682464,1753410660279,-221.595149,0.00019695,2]
[374682465,1753410660289,-315.154865,0.00019695,2]
[374682466,1753410660298,-315.154865,0.00019695,2]
[374682467,1753410660309,-529.65,0.00019698,2]
[374682468,1753410660318,-688.45,0.00019698,2]
[374682469,1753410660328,-460.0,0.00019698,2]
[374682470,1753410660337,-194.0,0.000197,2]
[374682471,1753410660346,-151.0,0.00019701,2]
[374682472,1753410660356,-151.0,0.00019701,2]
[374682473,1753410660365,-256.401302,0.00019701,2]
[374682474,1753410660374,-256.401302,0.00019701,2]
[374682475,1753410660384,-2500.0,0.00019764,2]
[374682476,1753410660394,-185.14377034,0.00019773,2]
[374682477,1753410660403,-306.48156,0.000198,2]
[374682478,1753410660412,-611.736629,0.000198,2]
[374682479,1753410660422,-611.736629,0.000198,2]
[374682480,1753410660431,-6775.75941783,0.00019831,2]
[374682481,1753410660441,-559.7,0.00019868,2]
[374682482,1753410660451,-494.51,0.00019868,2]
[374682483,1753410660461,-469.52,0.00019868,2]
[374682484,1753410660471,-515.84,0.00019868,2]
[374682485,1753410660481,-554.32,0.00019868,2]
[374682486,1753410660492,-2480.89,0.00019868,2]
[374682487,1753410660504,-500.0,0.00019873,2]
[374682488,1753410660513,-500.0,0.00019873,2]
[374682489,1753410660523,-500.0,0.00019873,2]
[374682490,1753410660532,-500.9976618,0.00019873,2]
[374682491,1753410660542,-183.40307533,0.00019873,2]
[374682492,1753410660552,-500.0,0.00019873,2]
[374682493,1753410660563,-500.0,0.00019873,2]
[374682494,1753410660575,-317.46577424,0.00019873,2]
[374682495,1753410660585,-500.0,0.00019873,2]
[374682496,1753410660595,-501.08613009,0.00019873,2]
[374682497,1753410660604,-501.94224945,0.00019886,2]
[374682498,1753410660613,-200.45473655,0.00019899,2]
[374682499,1753410660634,-4125.13577568,0.000199,2]
[374682500,1753410660647,-555651.56182357,0.000199,2]
[374682501,1753410660658,-152.174412,0.000199,2]
[374682502,1753410660668,-237.7318,0.000199,2]
[374682503,1753410660679,-151.0,0.000199,2]
[374682504,1753410660689,-151.898934,0.000199,2]
[374682505,1753410660699,-151.0,0.000199,2]
[374682506,1753410660709,-151.0,0.000199,2]
[374682507,1753410660719,-151.0,0.000199,2]
[374682508,1753410660730,-151.0,0.000199,2]
[374682509,1753410660740,-151.0,0.000199,2]
[374682510,1753410660750,-153.100282,0.000199,2]
[374682511,1753410660760,-151.0,0.000199,2]
[374682512,1753410660770,-235.906581,0.000199,2]
[374682513,1753410660780,-151.0,0.000199,2]
[374682514,1753410660791,-151.0,0.000199,2]
[374682515,1753410660801,-151.0,0.000199,2]
[374682516,1753410660811,-256.401302,0.000199,2]
[374682517,1753410660821,-256.401302,0.000199,2]
[374682518,1753410660831,-203.945117,0.000199,2]
[374682519,1753410660841,-203.945117,0.000199,2]
[374682520,1753410660851,-280.404748,0.000199,2]
[374682521,1753410660861,-323.923002,0.000199,2]
[374682522,1753410660871,-151.0,0.000199,2]
[374682523,1753410660881,-323.923002,0.000199,2]
[374682524,1753410660891,-306.48156,0.000199,2]
[374682525,1753410660900,-202.786729,0.000199,2]
[374682526,1753410660910,-202.786729,0.000199,2]
[374682527,1753410660920,-611.736629,0.000199,2]
[374682528,1753410660930,-611.736629,0.000199,2]
[374682529,1753410660940,-216.628189,0.000199,2]
[374682530,1753410660950,-216.628189,0.000199,2]
[374682531,1753410660959,-167.690374,0.000199,2]
[374682532,1753410660970,-167.690374,0.000199,2]
[374682533,1753410660979,-151.0,0.000199,2]
[374682534,1753410660989,-153.297077,0.000199,2]
[374682535,1753410660999,-395.662983,0.000199,2]
[374682536,1753410661009,-395.662983,0.000199,2]
[374682537,1753410661020,-221.595149,0.000199,2]
[374682538,1753410661030,-222.61079,0.000199,2]
[374682539,1753410661040,-221.595149,0.000199,2]
[374682540,1753410661051,-222.61079,0.000199,2]
[374682541,1753410661062,-315.154865,0.000199,2]
[374682542,1753410661072,-315.154865,0.000199,2]
[374682543,1753410661082,-500.0,0.00019901,2]
[374682544,1753410661092,-500.0,0.00019931,2]
[374682545,1753410661101,-460.0,0.00019967,2]
[374682546,1753410661111,-531.83,0.00019967,2]
[374682547,1753410661121,-460.0,0.00019967,2]
[374682548,1753410661130,-460.0,0.00019967,2]
[374682549,1753410661140,-460.0,0.00019967,2]
[374682550,1753410661150,-708.61,0.00019967,2]
[374682551,1753410661160,-460.0,0.00019967,2]
[374682552,1753410661169,-707.69,0.00019967,2]
[374682553,1753410661180,-460.0,0.00019967,2]
[374682554,1753410661190,-460.0,0.00019967,2]
[374682555,1753410661200,-460.0,0.00019967,2]
[374682556,1753410661210,-495.41,0.00019967,2]
[374682557,1753410661220,-460.0,0.00019967,2]
[374682558,1753410661230,-522.97259715,0.00019967,2]
[374682559,1753410661239,-460.0,0.00019967,2]
[374682560,1753410661253,-460.0,0.00019967,2]
[374682561,1753410661263,-1047.05,0.00019967,2]
[374682562,1753410661272,-584.03,0.00019967,2]
[374682563,1753410661282,-460.0,0.00019967,2]
[374682564,1753410661292,-460.0,0.00019967,2]
[374682565,1753410661303,-460.0,0.00019967,2]
[374682566,1753410661315,-773.56,0.00019967,2]
[374682567,1753410661326,-460.0,0.00019967,2]
[374682568,1753410661337,-1012.15,0.00019967,2]
[374682569,1753410661347,-519.48,0.00019967,2]
[374682570,1753410661356,-797.69,0.00019967,2]
[374682571,1753410661366,-6186.6,0.00019967,2]
[374682572,1753410661376,-1104.74,0.00019967,2]
[374682573,1753410661386,-2434.21,0.00019967,2]
[374682574,1753410661396,-489.76,0.00019967,2]
[374682575,1753410661406,-824.96,0.00019967,2]
[374682576,1753410661416,-3551.94,0.00019967,2]
[374682577,1753410661426,-460.0,0.00019967,2]
[374682578,1753410661436,-537.45,0.00019967,2]
[374682579,1753410661446,-597.97,0.00019967,2]
[374682580,1753410661456,-460.0,0.00019967,2]
[374682581,1753410661465,-769.35,0.00019967,2]
[374682582,1753410661476,-548.05,0.00019967,2]
[374682583,1753410661487,-3618.34,0.00019967,2]
[374682584,1753410661501,-669.02,0.00019967,2]
[374682585,1753410661511,-618.66,0.00019967,2]
[374682586,1753410661520,-2183.0,0.00019967,2]
[374682587,1753410661530,-798.0,0.00019967,2]
[374682588,1753410661541,-1662.31,0.00019967,2]
[374682589,1753410661551,-2580.53,0.00019967,2]
[374682590,1753410661562,-723.52,0.00019967,2]
[374682591,1753410661573,-460.0,0.00019967,2]
[374682592,1753410661582,-2911.49,0.00019967,2]
[374682593,1753410661592,-1899.99,0.00019967,2]
[374682594,1753410661602,-823.25,0.00019967,2]
[374682595,1753410661612,-460.0,0.00019967,2]
[374682596,1753410661621,-1184.05,0.00019967,2]
[374682597,1753410661632,-516.73998799,0.00019967,2]
[374682598,1753410661644,-845.56,0.00019967,2]
[374682599,1753410661654,-1186.37,0.00019967,2]
[374682600,1753410661664,-1166.67,0.00019967,2]
[374682601,1753410661673,-466.68,0.00019967,2]
[374682602,1753410661684,-1837.22,0.00019967,2]
[374682603,1753410661694,-1960.72,0.00019967,2]
[374682604,1753410661703,-684.41,0.00019967,2]
[374682605,1753410661715,-2087.95,0.00019967,2]
[374682606,1753410661725,-805.27,0.00019967,2]
[374682607,1753410661734,-1307.26,0.00019967,2]
[374682608,1753410661744,-857.62,0.00019967,2]
[374682609,1753410661754,-460.0,0.00019967,2]
[374682610,1753410661765,-460.0,0.00019967,2]
[374682611,1753410661776,-2118.52,0.00019967,2]
[374682612,1753410661787,-477.31,0.00019967,2]
[374682613,1753410661800,-460.0,0.00019967,2]
[374682614,1753410661810,-460.0,0.00019967,2]
[374682615,1753410661820,-994.19,0.00019967,2]
[374682616,1753410661830,-460.0,0.00019967,2]
[374682617,1753410661841,-689.09,0.00019967,2]
[374682618,1753410661852,-5280.61,0.00019967,2]
[374682619,1753410661863,-818.01,0.00019967,2]
[374682620,1753410661875,-851.66,0.00019967,2]
[374682621,1753410661885,-1060.82,0.00019967,2]
[374682622,1753410661895,-2954.27,0.00019967,2]
[374682623,1753410661905,-668.67,0.00019967,2]
[374682624,1753410661915,-465.43260636,0.00019968,2]
[374682625,1753410661924,-460.0,0.00019968,2]
[374682626,1753410661934,-460.0,0.00019968,2]
[374682627,1753410661943,-515.15,0.00019968,2]
[374682628,1753410661953,-460.0,0.00019968,2]
[374682629,1753410661963,-555.36,0.00019968,2]
[374682630,1753410661972,-460.0,0.00019968,2]
[374682631,1753410661982,-1327.67,0.00019968,2]
[374682632,1753410661992,-460.0,0.00019968,2]
[374682633,1753410662002,-523.23,0.00019968,2]
[374682634,1753410662012,-491.61,0.00019968,2]
[374682635,1753410662022,-460.0,0.00019968,2]
[374682636,1753410662031,-460.0,0.00019968,2]
[374682637,1753410662041,-460.0,0.00019968,2]
[374682638,1753410662050,-460.0,0.00019968,2]
[374682639,1753410662060,-636.24,0.00019968,2]
[374682640,1753410662071,-460.0,0.00019968,2]
[374682641,1753410662081,-460.0,0.00019969,2]
[374682642,1753410662091,-460.0,0.00019969,2]
[374682643,1753410662101,-529.65,0.00019972,2]
[374682644,1753410662110,-688.45,0.00019972,2]
[374682645,1753410662120,-460.0,0.00019972,2]
[374682646,1753410662130,-194.0,0.0001998,2]
[374682647,1753410662140,-4000.0,0.0002,4]
[374682648,1753410662150,-16000.0,0.0002,2]
[374682649,1753410662160,-35850.79696441,0.0002,2]
[374682650,1753410662170,-37542.46571244,0.0002,2]
[374682651,1753410662317,-11831.97017718,0.0002,2]
[374682652,1753410662327,-21824.64398007,0.0002,2]
[374682653,1753410662338,-173.676,0.0002,2]
[374682654,1753410662348,-151.0,0.0002,2]
[374682655,1753410662358,-151.0,0.0002,2]
[374682656,1753410662368,-151.0,0.0002,2]
[374682657,1753410662377,-153.146986,0.0002,2]
[374682658,1753410662386,-235.906581,0.0002,2]
[374682659,1753410662396,-151.0,0.0002,2]
[374682660,1753410662406,-151.0,0.0002,2]
[374682661,1753410662416,-151.0,0.0002,2]
[374682662,1753410662426,-256.401302,0.0002,2]
[374682663,1753410662436,-256.401302,0.0002,2]
[374682664,1753410662445,-203.945117,0.0002,2]
[374682665,1753410662455,-203.945117,0.0002,2]
[374682666,1753410662464,-323.923002,0.0002,2]
[374682667,1753410662475,-151.0,0.0002,2]
[374682668,1753410662485,-323.923002,0.0002,2]
[374682669,1753410662498,-306.48156,0.0002,2]
[374682670,1753410662507,-202.786729,0.0002,2]
[374682671,1753410662517,-202.786729,0.0002,2]
[374682672,1753410662526,-611.736629,0.0002,2]
[374682673,1753410662535,-611.736629,0.0002,2]
[374682674,1753410662544,-216.628189,0.0002,2]
[374682675,1753410662553,-216.628189,0.0002,2]
[374682676,1753410662564,-167.690374,0.0002,2]
[374682677,1753410662583,-167.690374,0.0002,2]
[374682678,1753410662594,-151.0,0.0002,2]
[374682679,1753410662604,-395.662983,0.0002,2]
[374682680,1753410662613,-395.662983,0.0002,2]
[374682681,1753410662622,-221.595149,0.0002,2]
[374682682,1753410662631,-222.61079,0.0002,2]
[374682683,1753410662641,-221.595149,0.0002,2]
[374682684,1753410662650,-222.61079,0.0002,2]
[374682685,1753410662661,-150.08570078,0.0002,7]
[374682686,1753410662670,-315.154865,0.0002,2]
[374682687,1753410662679,-315.154865,0.0002,2]
[374682688,1753410662689,-2000.0,0.00020016,2]
[374682689,1753410662698,-6775.75941783,0.00020072,2]
[374682690,1753410662709,-2157.0,0.00020087,2]
[374682691,1753410662719,-973.577,0.00020087,2]
[374682692,1753410662728,-407.0,0.00020087,2]
[374682693,1753410662738,-421.487,0.00020087,2]
[374682694,1753410662747,-648.0,0.00020087,2]
[374682695,1753410662757,-194.0,0.00020097,2]
[374682696,1753410662767,-168.0,0.00020133,2]
[374682697,1753410662776,-460.0,0.00020137,2]
[374682698,1753410662786,-231.0,0.00020139,2]
[374682699,1753410662795,-168.0,0.0002014,2]
[374682700,1753410662805,-559.7,0.00020142,2]
[374682701,1753410662816,-494.51,0.00020142,2]
[374682702,1753410662826,-469.52,0.00020142,2]
[374682703,1753410662835,-515.84,0.00020142,2]
[374682704,1753410662845,-554.32,0.00020142,2]
[374682705,1753410662855,-2480.89,0.00020142,2]
[374682706,1753410662865,-150.0,0.00020148,2]
[374682707,1753410662874,-150.138,0.00020148,2]
[374682708,1753410662883,-228.785979,0.00020187,2]
[374682709,1753410662893,-460.0,0.00020241,2]
[374682710,1753410662902,-531.83,0.00020241,2]
[374682711,1753410662912,-460.0,0.00020241,2]
[374682712,1753410662921,-460.0,0.00020241,2]
[374682713,1753410662932,-460.0,0.00020241,2]
[374682714,1753410662941,-708.61,0.00020241,2]
[374682715,1753410662951,-460.0,0.00020241,2]
[374682716,1753410662960,-707.69,0.00020241,2]
[374682717,1753410662969,-460.0,0.00020241,2]
[374682718,1753410662979,-460.0,0.00020241,2]
[374682719,1753410662988,-189.14735661,0.00020241,2]
[374682720,1753410662997,-495.41,0.00020241,2]
[374682721,1753410663006,-460.0,0.00020241,2]
[374682722,1753410663016,-181.43023672,0.00020241,2]
[374682723,1753410663025,-460.0,0.00020241,2]
[374682724,1753410663035,-1047.05,0.00020241,2]
[374682725,1753410663044,-584.03,0.00020241,2]
[374682726,1753410663054,-460.0,0.00020241,2]
[374682727,1753410663064,-460.0,0.00020241,2]
[374682728,1753410663074,-460.0,0.00020241,2]
[374682729,1753410663084,-773.56,0.00020241,2]
[374682730,1753410663093,-490.99361653,0.00020241,2]
[374682731,1753410663103,-1012.15,0.00020241,2]
[374682732,1753410663113,-519.48,0.00020241,2]
[374682733,1753410663123,-797.69,0.00020241,2]
[374682734,1753410663132,-6186.6,0.00020241,2]
[374682735,1753410663142,-1104.74,0.00020241,2]
[374682736,1753410663153,-2434.21,0.00020241,2]
[374682737,1753410663163,-489.76,0.00020241,2]
[374682738,1753410663172,-824.96,0.00020241,2]